Cogmind - Beta 13 @@@ ROGUE MODE // 2024.05.31 @ 21:32:03 Player: Falling_Sands Result: Self-destructed Performance ------------- Evolutions (6) 3000 Regions Visited (7) 1400 Robots Destroyed (52) 260 Value Destroyed (1687) 1687 Prototype IDs (15) 300 Alien Tech Used (0) 0 Bonus (0) 0 TOTAL SCORE: 6647 Bonus ------- None Cogmind --------- Core Integrity 1150/1150 Matter 250/300 Energy 435/435 System Corruption 0% Temperature Cool (0) Movement Treading (320) Ox2 Location -4/Factory Parts ------- > --- POWER (2) -------- Neutrino Core Neutrino-Ion Core > --- PROPULSION (4) --- Improved Treads Flying Impulse-Gravmag Exoskeleton > --- UTILITY (9) ------ Scrap Engine Large Storage Unit Advanced Weight Redist. System Recoil Nullifier Hardened Light Armor Plating Improved Medium Armor Plating Advanced Hacking Suite System Shield > --- WEAPON (4) ------- Enhanced Gauss Cannon Power Sword > --- INVENTORY (15) --- Fusion Compressor Improved Cryofiber Web Large Storage Unit Large Battery (200) Medium Matter Pod (100) Improved Shock Absorption System Advanced Hacking Suite Tractor Beam Advanced Field Recycling Unit (0) Tesla Rifle Improved Arc Projector Heavy Phase Cannon Battle Rifle Grenade Launcher Peak State ------------ > --- POWER ------------ Neutrino Core Neutrino-Ion Core > --- PROPULSION ------- Improved Treads Flying Impulse-Gravmag Exoskeleton > --- UTILITY ---------- Scrap Engine Large Storage Unit Advanced Weight Redist. System Recoil Nullifier Hardened Light Armor Plating Improved Medium Armor Plating Advanced Hacking Suite System Shield > --- WEAPON ----------- Enhanced Gauss Cannon Power Sword > --- INVENTORY -------- Fusion Compressor Improved Cryofiber Web Large Storage Unit Large Battery Medium Matter Pod Improved Shock Absorption System Advanced Hacking Suite Tractor Beam Advanced Field Recycling Unit Tesla Rifle Improved Arc Projector Heavy Phase Cannon Battle Rifle Grenade Launcher [Rating: 90] Favorites ----------- Power Light Ion Engine Engine Light Ion Engine Power Core Cooled Fission Core Propulsion Light Treads Treads Light Treads Leg Aluminum Leg Hover Unit Makeshift Hover Unit Flight Unit Constructs Utility Large Storage Unit Device Scrap Engine Storage Large Storage Unit Processor Improved Corruption Screen Hackware Advanced Hacking Suite Protection Hardened Light Armor Plating Weapon Heavy EM Pulse Gun Energy Gun Heavy EM Pulse Gun Energy Cannon Light EM Pulse Cannon Ballistic Gun Battle Rifle Ballistic Cannon Enhanced Gauss Cannon Launcher Grenade Launcher Special Weapon Flamer Slashing Weapon Mining Claw Build | -11 -10 -10 -7 -5 -5 -5 -4 ------- Run | Yrd Mat Sub Rec Fac Upp Upp Fac Slots Evolved 12 | . . . . 10 . . 2 Power 1 | . . . . 1 . . . Propulsion 2 | . . . . 1 . . 1 Utility 7 | . . . . 7 . . . Weapon 2 | . . . . 1 . . 1 Parts Attached 76 | 6 14 13 10 20 5 3 5 Power 9 | 1 2 1 2 2 . . 1 Engine 5 | 1 2 1 . 1 . . . Core 4 | . . . 2 1 . . 1 Reactor . | . . . . . . . . Propulsion 11 | 2 2 1 2 1 2 1 . Treads 5 | 2 2 . . . . 1 . Leg 5 | . . 1 2 1 1 . . Wheel . | . . . . . . . . Hover 1 | . . . . . 1 . . Flight . | . . . . . . . . Utility 24 | 1 4 . 3 11 1 1 3 Device 10 | . 1 . . 7 . 1 1 Storage 4 | 1 2 . . . . . 1 Processor 3 | . . . 1 2 . . . Hackware 2 | . . . . 1 . . 1 Protection 5 | . 1 . 2 1 1 . . Artifact . | . . . . . . . . Weapon 32 | 2 6 11 3 6 2 1 1 Energy Gun 10 | 1 2 5 1 1 . . . Energy Cannon 3 | . 1 2 . . . . . Ballistic Gun 8 | 1 2 1 1 2 1 . . Ballistic Cannon 3 | . . . . 2 . 1 . Launcher 3 | . . 1 . 1 1 . . Special Weapon 1 | . . 1 . . . . . Impact Weapon . | . . . . . . . . Slashing Weapon 4 | . 1 1 1 . . . 1 Piercing Weapon . | . . . . . . . . Special Melee Weapon . | . . . . . . . . Unidentified Prototypes 1 | . . . . 1 . . . Parts Lost 11 | . 1 2 3 1 . 4 . Power 1 | . . . 1 . . . . Propulsion 4 | . . 1 1 . . 2 . Utility 2 | . . . . 1 . 1 . Weapon 4 | . 1 1 1 . . 1 . Highest Loss Streak 3 | . 1 1 2 1 . 3 . To Critical Strikes . | . . . . . . . . Average Slot Usage (%) 91 | . 99 99 94 79 93 84 70 Engine 7 | . 14 14 . 4 5 5 3 Core 3 | . . . 12 1 5 5 6 Treads 12 | . 27 27 8 . . 4 5 Leg 8 | . . . 18 16 16 7 4 Device 9 | . 9 . . 15 17 12 10 Storage 9 | . 14 14 12 5 5 5 5 Processor 2 | . . . . 7 5 5 4 Hackware 2 | . . . . 2 5 5 5 Protection 9 | . 3 14 12 5 11 11 10 Energy Gun 8 | . 6 25 4 5 5 5 . Energy Cannon 1 | . . . 12 . . . . Ballistic Gun 7 | . 16 . 7 5 8 6 . Ballistic Cannon 1 | . . . . 3 2 3 5 Slashing Weapon 1 | . 4 . 4 . . . 4 Naked Turns . | . . . . . . . . Heaviest Build 76 | 13 35 36 40 76 76 71 69 Greatest Support 40 | 40 40 40 38 38 38 38 32 Greatest Overweight (x) 23 | . . 1 1 1 23 2 8 Average Overweight (x) . | . . . . . 1 1 2 Largest Inventory Capacity 15 | 8 15 15 15 15 15 15 15 Average Capacity 14 | 7 13 15 15 15 15 15 15 Most Carried 15 | 5 15 15 15 15 15 14 14 Average Carried 13 | 2 11 14 12 13 14 12 12 Final Capacity 15 | 8 15 15 15 15 15 15 15 Final Carried 15 | 5 15 13 10 15 14 12 14 Scrap Engine Consumption 19 | . . . . . . . 19 Constructs Created 2 | . . . . . . . 2 Constructs Modified 2 | . . . . . . . 2 Class Distribution -------------------- 57% | Mutant 42% | Tank Dominant Class ---------------- Mutant | -10/Materials Mutant | -10/Subcaves Mutant | -7/Recycling Tank | -5/Factory Tank | -5/Upper Caves Tank | -5/Upper Caves Mutant | -4/Factory Resources | -11 -10 -10 -7 -5 -5 -5 -4 ----------- Run | Yrd Mat Sub Rec Fac Upp Upp Fac Matter Collected 1672 | 335 275 122 209 273 331 127 . Remotely . | . . . . . . . . Salvage Created 2172 | 143 799 274 228 261 347 120 . Parts 124 | 7 56 21 2 11 17 10 . Haulers Intercepted 2 | . 2 . . . . . . Recyclers Shooed . | . . . . . . . . Parts Field Recycled . | . . . . . . . . Retrieved Matter . | . . . . . . . . Parts Self-Destructed 25 | . . 8 . . 11 6 . Prevented 13 | . . 4 . . 3 6 . Kills | -11 -10 -10 -7 -5 -5 -5 -4 ------- Run | Yrd Mat Sub Rec Fac Upp Upp Fac Combat Hostiles Destroyed 42 | . 17 8 1 5 9 2 . Guns 29 | . 17 7 . 1 4 . . Cannons 4 | . . . 1 1 . 2 . AOE 9 | . . 1 . 3 5 . . Classes Destroyed 13 | 3 5 2 1 1 1 . . Worker 2 | 1 . . . 1 . . . Builder 1 | . 1 . . . . . . Tunneler 1 | 1 . . . . . . . Hauler 2 | . 2 . . . . . . Recycler 1 | 1 . . . . . . . Operator 1 | . 1 . . . . . . Turret 2 | . . 2 . . . . . Swarmer 12 | . 3 4 . . 5 . . Grunt 22 | . 14 2 . 3 3 . . Sentry 1 | . . . . . 1 . . Hunter 1 | . . . 1 . . . . Programmer 4 | . . . . 2 . 2 . Subdweller 2 | . . 2 . . . . . Best Kill Streak 5 | 2 3 5 1 4 5 2 . Combat Bots Only 5 | . 3 4 1 4 5 2 . Max Kills in Single Turn 2 | 1 1 1 1 2 2 1 . Gunslinging . | . . . . . . . . Exploded 2 | . . 1 . 2 2 . . Melee . | . . . . . . . . Uniques/NPCs Destroyed . | . . . . . . . . Combat | -11 -10 -10 -7 -5 -5 -5 -4 -------- Run | Yrd Mat Sub Rec Fac Upp Upp Fac Hostile Shots Fired 296 | . 71 79 31 38 30 47 . Missed 86 | . 15 23 9 10 12 17 . Damage Taken 2532 | . 617 545 295 415 167 493 . Core 252 | . 132 51 10 9 . 50 . Absorbed by Shields 598 | . . . . 238 174 186 . Regen/Repaired (Parts) 81 | . 81 . . . . . . Core Remaining (%) 72 | 100 . . 22 . . 94 . Volleys Fired 202 | 16 70 43 6 25 25 17 . Largest 3 | 2 2 2 3 3 3 3 . Hottest 157 | 60 65 90 126 157 125 147 . Shots Fired 377 | 32 123 79 11 34 52 46 . Gun 350 | 32 123 70 7 26 49 43 . Cannon 13 | . . 2 4 4 . 3 . Launcher 14 | . . 7 . 4 3 . . Special . | . . . . . . . . Kinetic 213 | 16 96 2 5 25 40 29 . Thermal . | . . . . . . . . Explosive 14 | . . 7 . 4 3 . . Electromagnetic 150 | 16 27 70 6 5 9 17 . Robot Hit Streak 18 | 4 13 7 7 11 9 18 . Robot Miss Streak 9 | 4 9 4 2 2 2 3 . Penetration Max 1 | . . . . 1 1 . . Secondary Targets . | . . . . . . . . Shots Hit Robots 217 | 18 78 20 8 21 35 37 . Core Hits 111 | 5 36 17 4 15 21 13 . Critical Kills 2 | . 1 . . 1 . . . Critical Parts Destroyed 10 | . . . . 3 2 5 . Critical Strikes 15 | . 1 1 . 6 2 5 . Destroy 12 | . 1 . . 4 2 5 . Blast 2 | . . . . 2 . . . Corrupt 1 | . . 1 . . . . . Melee Attacks 29 | . 5 18 5 . . . 1 Impact . | . . . . . . . . Slashing 29 | . 5 18 5 . . . 1 Piercing . | . . . . . . . . Sneak Attacks . | . . . . . . . . Combat Hostiles . | . . . . . . . . Follow-up Attacks . | . . . . . . . . Damage Inflicted 3830 | 214 789 492 174 851 709 601 . Guns 2280 | 214 789 241 57 203 360 416 . Cannons 336 | . . 36 72 106 . 122 . Explosions 1214 | . . 215 45 542 349 63 . Melee . | . . . . . . . . Ramming . | . . . . . . . . Kinetic 1625 | 75 515 . 41 244 270 480 . Thermal 372 | . . 77 45 140 47 63 . Explosive 842 | . . 138 . 402 302 . . Electromagnetic 991 | 139 274 277 88 65 90 58 . Impact . | . . . . . . . . Slashing . | . . . . . . . . Piercing . | . . . . . . . . Highest Corruption 2 | . 1 1 2 . . . . Average Corruption 1 | . 1 1 1 . . . . Corruption Purged . | . . . . . . . . Corruption Blocked 13 | . . . . 6 . 7 . Effects 15 | . 7 6 2 . . . . Message Errors 6 | . 4 2 . . . . . Matter Fused 4 | . 3 1 . . . . . Heat Flow Errors 4 | . . 2 2 . . . . Misfires 1 | . . 1 . . . . . Overload Shots . | . . . . . . . . Overflow Damage 18 | . . . . . 18 . . Projectiles . | . . . . . . . . Explosions 18 | . . . . . 18 . . Melee . | . . . . . . . . Knockbacks . | . . . . . . . . Impact . | . . . . . . . . Kinetic . | . . . . . . . . Secondary . | . . . . . . . . Self-Inflicted Damage 202 | . . 32 29 71 . 70 . Shots 5 | . . 2 1 1 . 1 . Rammed . | . . . . . . . . Targets Rammed . | . . . . . . . . Kicked . | . . . . . . . . Crushed . | . . . . . . . . Highest Temperature 462 | 60 56 161 107 305 159 462 . Average Temperature 89 | 24 14 42 50 214 51 212 . Received Heat Transfer 660 | . 273 240 . 106 37 4 . Effects 3 | . . . . 1 . 2 . Shutdowns 1 | . . . . . . 1 . Energy Bleed 1 | . . . . 1 . . . Short Circuit 1 | . . . . . . 1 . Siege Activations . | . . . . . . . . Robots Corrupted . | . . . . . . . . Combat Hostiles . | . . . . . . . . Parts Fried 3 | 1 1 . 1 . . . . Impact Corruptions . | . . . . . . . . Robots Melted . | . . . . . . . . Combat Hostiles . | . . . . . . . . Parts Melted . | . . . . . . . . Heat Transferred 350 | . . 100 50 100 50 50 . Parts Sabotaged . | . . . . . . . . Parts Stolen . | . . . . . . . . Parts Stripped . | . . . . . . . . Power Chain Reactions 5 | . . 1 1 1 1 1 . Alert | -11 -10 -10 -7 -5 -5 -5 -4 ------- Run | Yrd Mat Sub Rec Fac Upp Upp Fac Peak Influence 281 | 15 179 . 281 174 . . 2 Initial 246 | . 9 . 246 50 . . . Average 72 | 4 68 . 173 45 . . 1 Maximum Alert Level 1 | . . . 1 . . . . Low Security (%) 90 | 100 100 . 51 100 . . 100 Level 1 9 | . . . 48 . . . . Level 2 . | . . . . . . . . Level 3 . | . . . . . . . . Level 4 . | . . . . . . . . Level 5 . | . . . . . . . . High Security . | . . . . . . . . Max Security . | . . . . . . . . Squads Dispatched 13 | . 7 . . 5 . . 1 Investigation 4 | . 4 . . . . . . Extermination 2 | . . . . 1 . . 1 Reinforcement 5 | . 3 . . 2 . . . Assault . | . . . . . . . . Garrison 2 | . . . . 2 . . . Intercept . | . . . . . . . . Searches Triggered . | . . . . . . . . Construction Impeded . | . . . . . . . . Haulers Reinforced . | . . . . . . . . Active Scanning Responses . | . . . . . . . . Cargo Convoy Interrupts 1 | . . . . 1 . . . Stealth | -11 -10 -10 -7 -5 -5 -5 -4 --------- Run | Yrd Mat Sub Rec Fac Upp Upp Fac Distress Signals 1 | . . . 1 . . . . Communications Jammed . | . . . . . . . . Distress Signals . | . . . . . . . . Times Spotted 98 | . 35 32 10 7 10 4 . Peak Tracking Total 7 | . 6 6 7 5 5 2 1 Tactical Retreats 6 | . 2 3 . 1 . . . Traps | -11 -10 -10 -7 -5 -5 -5 -4 ------- Run | Yrd Mat Sub Rec Fac Upp Upp Fac Traps Triggered 2 | . 1 1 . . . . . Indirectly . | . . . . . . . . Trap Hack Attempts . | . . . . . . . . Triggered . | . . . . . . . . Disarmed . | . . . . . . . . Reprogrammed 1 | . 1 . . . . . . Reused . | . . . . . . . . Traps Extracted . | . . . . . . . . Installed . | . . . . . . . . Triggered 3 | . . . . 1 . 2 . Machines | -11 -10 -10 -7 -5 -5 -5 -4 ---------- Run | Yrd Mat Sub Rec Fac Upp Upp Fac Machines Disabled 8 | . . 6 1 1 . . . Max in Single Turn 3 | . . 3 1 1 . . . Machines Repaired . | . . . . . . . . Machines Dismantled . | . . . . . . . . Machines Sabotaged . | . . . . . . . . Overloaded Fab Kills . | . . . . . . . . Hacking | -11 -10 -10 -7 -5 -5 -5 -4 --------- Run | Yrd Mat Sub Rec Fac Upp Upp Fac Machines Accessed 12 | . 6 1 4 . . . 1 Terminals 9 | . 5 . 3 . . . 1 Fabricators . | . . . . . . . . Repair Stations 1 | . 1 . . . . . . Recycling Units 1 | . . . 1 . . . . Scanalyzers . | . . . . . . . . Garrison Access . | . . . . . . . . Total Hacks 40 | . 20 9 9 . . . 2 Successful 21 | . 11 9 1 . . . . Failed 19 | . 9 . 8 . . . 2 Catastrophic 3 | . 1 . 2 . . . . Database Lockouts . | . . . . . . . . Manual 12 | . 3 1 6 . . . 2 Terminals 26 | . 18 . 6 . . . 2 Fabricators . | . . . . . . . . Repair Stations 2 | . 2 . . . . . . Recycling Units 3 | . . . 3 . . . . Scanalyzers . | . . . . . . . . Garrison Access . | . . . . . . . . Terminal Hacks 16 | . 7 9 . . . . . Record 8 | . . 8 . . . . . Prototype ID Bank 1 | . 1 . . . . . . Alert Level 1 | . 1 . . . . . . Locate Traps 2 | . 2 . . . . . . Reprogram Traps 1 | . 1 . . . . . . Recall Investigation 1 | . 1 . . . . . . Zone Layout 1 | . 1 . . . . . . Derelict Proto ID Bank 1 | . . 1 . . . . . Fabricator Hacks . | . . . . . . . . Repair Station Hacks 2 | . 2 . . . . . . Scan Component 1 | . 1 . . . . . . Repair 1 | . 1 . . . . . . Recycling Unit Hacks 1 | . . . 1 . . . . Retrieve Components 1 | . . . 1 . . . . Scanalyzer . | . . . . . . . . Garrison Access Hacks . | . . . . . . . . Unauthorized Hacks 2 | . 2 . . . . . . Terminals 2 | . 2 . . . . . . Botnet 2 | . 2 . . . . . . Fabricators . | . . . . . . . . Repair Stations . | . . . . . . . . Recycling Units . | . . . . . . . . Scanalyzers . | . . . . . . . . Garrison Access . | . . . . . . . . Data Cores Recovered . | . . . . . . . . Used . | . . . . . . . . Hacking Detections 11 | . 6 . 4 . . . 1 Full Trace Events 4 | . 3 . 1 . . . . Feedback Events 1 | . 1 . . . . . . Corruption 1 | . 1 . . . . . . Feedback Blocked . | . . . . . . . . Robot Schematics Acquired . | . . . . . . . . Robots Built . | . . . . . . . . Authchips . | . . . . . . . . Time . | . . . . . . . . Total Robot Build Rating . | . . . . . . . . Part Schematics Acquired . | . . . . . . . . Parts Built . | . . . . . . . . Authchips . | . . . . . . . . Time . | . . . . . . . . Total Part Build Rating . | . . . . . . . . Parts Repaired 1 | . 1 . . . . . . Time 26 | . 26 . . . . . . Parts Recycled . | . . . . . . . . Recycled Matter . | . . . . . . . . Retrieved Matter . | . . . . . . . . Retrieved Components . | . . . . . . . . Parts Scanalyzed . | . . . . . . . . Part Schematics Acquired . | . . . . . . . . Parts Damaged . | . . . . . . . . Bothacking | -11 -10 -10 -7 -5 -5 -5 -4 ------------ Run | Yrd Mat Sub Rec Fac Upp Upp Fac Used RIF Installer . | . . . . . . . . Robots Hacked . | . . . . . . . . Non-combat . | . . . . . . . . Combat . | . . . . . . . . Robot Hacks Applied . | . . . . . . . . Relay Couplers Released . | . . . . . . . . Fabnet Peak Effective % . | . . . . . . . . Robots Rewired 2 | . . . . . 1 1 . Allies Hacked . | . . . . . . . . Hacks Repelled . | . . . . . . . . Allies | -11 -10 -10 -7 -5 -5 -5 -4 -------- Run | Yrd Mat Sub Rec Fac Upp Upp Fac Total Allies 2 | . . . . . 1 1 . Largest Group 1 | . . . . . 1 1 1 Highest-Rated Group 29 | . . . . . 29 25 25 Highest-Rated Ally 29 | . . . . . 29 25 25 Total Orders 1 | . . . . . . . 1 STAY 1 | . . . . . . . 1 Ally Attacks 12 | . . . . . 12 . . Total Damage 148 | . . . . . 148 . . Kills . | . . . . . . . . Allies Corrupted . | . . . . . . . . Allies Melted . | . . . . . . . . Intel | -11 -10 -10 -7 -5 -5 -5 -4 ------- Run | Yrd Mat Sub Rec Fac Upp Upp Fac Robot Analysis Total . | . . . . . . . . Derelict Logs Recovered 2 | . . 1 . . 1 . . Drone Launches . | . . . . . . . . Drone Recoveries . | . . . . . . . . Exploration | -11 -10 -10 -7 -5 -5 -5 -4 ------------- Run | Yrd Mat Sub Rec Fac Upp Upp Fac Turns Passed 7737 | 154 1729 1262 817 1018 1493 744 520 Spaces Moved 3571 | 61 873 645 344 528 727 236 157 Core 3 | 1 . . . . 2 . . Treads 2106 | 60 873 645 194 . . 178 156 Legs 1461 | . . . 150 528 725 58 . Wheels . | . . . . . . . . Hover . | . . . . . . . . Flight 1 | . . . . . . . 1 Fastest Speed 50 | 50 160 160 120 120 190 190 320 Average Speed 189 | 158 160 161 217 172 192 288 321 Slowest Speed 1200 | 160 160 240 240 190 1200 320 590 Overloaded Moves . | . . . . . . . . Propulsion Burnouts . | . . . . . . . . Robots Hopped . | . . . . . . . . Cave-ins Triggered . | . . . . . . . . Exploration Rate (%) 40 | 4 98 29 81 11 75 21 4 Regions Visited 7 Branch Regions 4 Pre-discovered Areas 1 | . . 1 . . . . . Known Exits Taken 1 | . . . . 1 . . . Unknown Exits Taken 6 | 1 1 1 1 . 1 1 . Scrap Searched 2 | . . 1 . . 1 . . Spaces Dug 9 | . 4 . 4 . . . 1 Terrain Destroyed 89 | . 4 30 10 15 19 10 1 Melee 9 | . 4 . 4 . . . 1 Projectile 2 | . . . . 1 . 1 . AOE 78 | . . 30 6 14 19 9 . Terrain Rammed . | . . . . . . . . Walls Destroyed . | . . . . . . . . Machines Disabled . | . . . . . . . . Actions | -11 -10 -10 -7 -5 -5 -5 -4 --------- Run | Yrd Mat Sub Rec Fac Upp Upp Fac Total 4145 | 87 1104 747 392 604 774 266 171 Wait 155 | . 94 21 21 5 9 5 . Move 3564 | 60 872 644 343 527 726 235 157 Hop . | . . . . . . . . Pick Up 51 | 5 26 2 3 13 1 . 1 Fast Attach 37 | 6 4 4 1 16 3 . 3 Attach 13 | . 1 2 4 2 . 3 1 Detach 5 | . . . . 2 . 1 2 Swap 26 | . 9 7 5 2 2 . 1 Drop 53 | . 23 6 3 12 4 . 5 Fire 202 | 16 70 43 6 25 25 17 . Melee 29 | . 5 18 5 . . . 1 Ram . | . . . . . . . . Kick . | . . . . . . . . Crush . | . . . . . . . . Escape Stasis . | . . . . . . . . Rewire 10 | . . . 1 . 4 5 . Trap . | . . . . . . . . Miscellaneous . | . . . . . . . . Route ------- -11/Scrapyard -10/Materials (discovered 6 exits: [*Mat x3] / [*Min x2] / *Sub) -10/Subcaves -7/Recycling -5/Factory -5/Upper Caves -5/Upper Caves -4/Factory (discovered 1 exit: Res) History --------- Turn | Location | Event 32 | -11/Scrapyard | Discovered new exit (range 16) 155 | -11/Scrapyard | Entered Materials 314 | -10/Materials | Build established: Mutant 497 | -10/Materials | Discovered new exit (range 16) 641 | -10/Materials | Discovered new exit (range 11) 1039 | -10/Materials | Repaired Lgt. Treads 1076 | -10/Materials | Discovered new exit (range 6) 1219 | -10/Materials | Discovered new exit (range 7) 1457 | -10/Materials | Core integrity fell below 50% 1484 | -10/Materials | Discovered new exit (range 16) 1870 | -10/Materials | Discovered new exit (range 10) 1884 | -10/Materials | Entered Subcaves 1923 | -10/Subcaves | Learned location of Zion (-7) 1923 | -10/Subcaves | Met a Zionite searching for "candidates" 1981 | -10/Subcaves | Learned location of 1 exit from Materials 2125 | -10/Subcaves | Shifting Twisted Machinery released Sub. Beam Cannon 2627 | -10/Subcaves | Visited 4L-MR0's lab 2751 | -10/Subcaves | Found Meta Core 3050 | -10/Subcaves | Discovered new exit (range 14) 3146 | -10/Subcaves | Entered Recycling 3152 | -7/Recycling | Found Scrap Engine 3665 | -7/Recycling | Attached Meta Core, gained temporary slots: Propulsion, Utility, Weapon 3921 | -7/Recycling | Discovered new exit (range 16) 3944 | -7/Recycling | Build established: Tank 3963 | -7/Recycling | Entered Factory 3963 | -5/Factory | Evolved 10 slots: Power x1, Propulsion x1, Utility x7, Weapon x1 4245 | -5/Factory | Build established: Mutant 4622 | -5/Factory | Discovered new exit (range 8) 4634 | -5/Factory | Identified exit to Upper Caves 4664 | -5/Factory | Build established: Tank 4782 | -5/Factory | Cargo convoy interrupted 4837 | -5/Factory | Garrison activated, responded to threat 4981 | -5/Factory | Entered Upper Caves 5000 | -5/Upper Caves | Encountered a Warlord checkpoint 5649 | -5/Upper Caves | Attracted the attention of an 0b10 checkpoint 6043 | -5/Upper Caves | Learned location of 1 exit from Factory 6404 | -5/Upper Caves | Discovered new exit (range 10) 6474 | -5/Upper Caves | Entered another Upper Caves area 6672 | -5/Upper Caves | Lost 3 parts (1n1u1w) 7138 | -5/Upper Caves | Discovered new exit (range 15) 7218 | -5/Upper Caves | Entered Factory 7218 | -4/Factory | Accompanied by 1 ally 7218 | -4/Factory | Evolved 2 slots: Propulsion x1, Weapon x1 7219 | -4/Factory | Identified exit to Research 7593 | -4/Factory | Build established: Mutant 7738 | -4/Factory | Self-destructed Last Messages --------------- 07569_ Acquired Neutrino Core. 07570_ Dropped Cld. Fission Core. 07571_ Acquired Cld. Fission Core. 07572_ Dropped Cld. Fission Core. 07583_ Scrap Engine consumes Cld. Fission Core. 07613_ Scrap Engine constructs Neutrino-Ion Core. 07653_ Scrap Engine consumes Prototype Flight Unit. 07668_ Dropped Imp. Carbon-fiber Leg. 07669_ Scrap Engine consumes Imp. Carbon-fiber Leg. 07673_ Scrap Engine consumes Imp. Antigrav System. 07691_ Acquired System Shield. 07716_ Scrap Engine modifies Flying Impulse-Gravmag Exoskeleton: Penalty +28, Support -2 Expanded to 2 slots (? T40 S10). 07718_ ALERT: Rogue bot located, Programmers report to Factory Zone 4Y. 07726_ Discarded Broken Imp. Corruption Screen. 07727_ Acquired Adv. Weight Redist. System. 07735_ Scrap Engine modifies Flying Impulse-Gravmag Exoskeleton: Support -1, Move Heat +1, Burnout +10 Expanded to 3 slots (? T40 S13). Map ----- +----------------------------------------------------+ | ?????????????????????????????????????????????????? | | ?????????????????????????????????????????????????? | | ?????????????????????????????????????????????????? | | ?????????????????????????????????????????????????? | | ?????????????????????????????????????????????????? | | ?????????????????????????????????????????????????? | | ?????????????????????????????????????????????????? | | ?????????????????????????????????????????????????? | | ?????????????????????????????????????????????????? | | ?????????????????????????????????????????????????? | | ?????????????????????????????????????????????????? | | ?????????????????????????????????????????????????? | | ????????????????????? ?????????????????????????? | | ?###########??????? ?????????????????????????? | | ## #??????# ?????????????????????????? | | + #??????# ?????????????????????????? | | # #??????# ?????????????????????????? | | # #??????# ?????????????????????????? | | + #??????# #????????????????????????? | | ## #??????# +????????????????????????? | | ?# #??????# #????????????????????????? | | ?# #??????# ###########??????????????? | | ######+############ # #??????????????? | | # #??????????????? | | # #??????????????? | | #@ #??????????????? | | + #??????????????? | | # #??????????????? | | ############ # #??????????????? | | # / # # #??????????????? | | # / # ###########??????????????? | | # / + #????????????????????????? | | # # #????????????????????????? | | # """ """ # #????????????????????????? | | # """ """ # #????????????????????????? | | # """ """ #########+#######?????????????????????? | | # #??# #?????????????????????? | | ###########??# #?????????????????????? | | #????????????# """""" #?????????????????????? | | #????????????# """""" #?????????????????????? | | #????????????# """""" #?????????????????????? | | ##????????????# """""" #?????????????????????? | | ??????????????# #?????????????????????? | | ??????????????# #?????????????????????? | | ??????????????#""" #?????????????????????? | | ??????????????#"Y #?????????????????????? | | ??????????????#""" #?????????????????????? | | ??????????????# #?????????????????????? | | ??????????????##############?????????????????????? | | ?????????????????????????????????????????????????? | +----------------------------------------------------+ Best States ------------- Heat Dissipation 43 Energy Generation 35 Energy Capacity 565 Matter Stores 300 Matter Capacity 300 Sight Range 16 Terrain Scan Density 10 Additional Mass Support 9 Corruption Block 15 Armor Coverage 375 Evasion (%) 55 Recoil Reduction 7 Offensive Hacking 14 Defensive Hacking 10 Item Schematics ----------------- None Robot Schematics ------------------ None Fabricated ------------ Nothing Alien Tech Used ----------------- None Achievements -------------- None Challenges ------------ None Game ------ Seed SwarmCatalystThrower Manual? 0 Play Time 01:28:58 Cumulative 61.2 hours Start 2024.05.31 @ 09:47:47 End 2024.05.31 @ 21:32:03 Sessions 9 Manual Loads 0 Difficulty Rogue Special Mode None Game No. 39 Rogue 39 Adventurer 0 Explorer 0 Win Type - Total 0 Types 0/0/0/0/0/0/0/0/0 Lore% 27 Gallery% 46 Achievement% 29 Wizard Run 0 Options --------- Layout 0 ASCII 1 Keyboard 1 Movement Mouse Keybinds 0 Fullscreen 1 Font 36/Terminus Map View 76x50 Zoom Use 0% Tactical HUD 1 Map Filters NONE Filters NONE Steam 1 RUN: b7238844-cf0f-4093-a3ca-291c5e6ec972